{"text_format":"3","workbook":"xlsx","n_sheets":1,"sheets":["Рахунок-фактура"],"not_rendered":{"defined_names":6},"read":"whole","date_system":"1900"}

{"sheet":"Рахунок-фактура","index":0,"n_rows":26,"n_cols":7,"rows_kept":26,"merged":[[0,1,0,2],[1,1,1,2],[1,3,1,4],[1,5,1,6],[2,1,2,2],[2,3,2,4],[2,5,2,6],[3,1,3,2],[3,3,3,4],[4,1,4,2],[4,3,4,4],[5,3,5,4],[24,1,24,4],[25,1,25,4]]}
[null,"Назва компанії"]
[null,"Вулиця, будинок, офіс",null,"Т.: Номер телефону",null,"Електронна пошта"]
[null,"Місто, область, поштовий індекс",null,"Ф.: Номер факсу",null,"Веб-сайт"]
[null,"Одержувач рахунка:",null,{"$f":"\"Телефон:   \"","v":"Телефон:   "},null,"№ рахунка:"]
[null,"Адреса:",null,{"$f":"\"Факс:    \"","v":"Факс:    "},null,"Дата виставлення рахунка:"]
[{"$nulls":3},{"$f":"\"Електронна пошта:   \"","v":"Електронна пошта:   "}]
[null,{"$f":"\"Електронна поштаr: \"","v":"Електронна поштаr: "}]
[null,"№ позиції","Опис","К-сть","Ціна за одиницю","Знижка","Ціна"]
[{"$nulls":6},{"$f":"IFERROR((D9*E9)-F9,\"\")","v":0}]
[{"$nulls":6},0]
[{"$nulls":6},0]
[{"$nulls":6},0]
[{"$nulls":6},0]
[{"$nulls":6},0]
[{"$nulls":6},0]
[{"$nulls":6},0]
[{"$nulls":6},0]
[{"$nulls":6},0]
[{"$nulls":6},0]
[{"$nulls":6},0]
[{"$nulls":5},"Проміжний підсумок рахунка",{"$f":"SUM(ПростийРахунокФактура[Ціна])","v":0}]
[{"$nulls":5},"Податкова ставка"]
[{"$nulls":5},"Податок із продажу",{"$f":"IFERROR(G21*G22,\"\")","v":0}]
[{"$nulls":5},"Інше"]
[null,{"$f":"\"Одержувач платежів: \"&імя_компанії&\".\"","v":"Одержувач платежів: Назва компанії."},{"$nulls":3},"Отриманий задаток"]
[null,"Загальна сума підлягає сплаті протягом <#> дн. На суму простроченої заборгованості нараховується штраф у розмірі <#>% на місяць.",{"$nulls":3},"УСЬОГО",{"$f":"IFERROR((G21+G23+G24)-G25,\"\")","v":0}]